bitfinex/quotes_BTCUSD_20250414
["timestamp","ask_amount","ask_price","bid_price","bid_amount"]
[1744644269856,0.00300063,84769.0,84766.0,0.011797]
[1744644270188,0.00300063,84769.0,84768.0,0.235938]
[1744644270393,0.00100063,84769.0,84768.0,0.235938]
[1744644270697,6.3e-07,84769.0,84768.0,0.235938]
[1744644270896,0.00100063,84769.0,84768.0,0.235938]
[1744644271039,6.3e-07,84769.0,84766.0,0.011797]
[1744644271245,6.3e-07,84769.0,84761.0,0.011797]
[1744644271455,0.00100063,84769.0,84768.0,0.23372952]
[1744644271859,0.00100063,84769.0,84768.0,0.235938]
[1744644272117,0.00300063,84769.0,84766.0,0.011797]
[1744644272421,0.00300063,84769.0,84767.0,0.23594]
[1744644272855,0.01379663,84769.0,84767.0,0.23594]
[1744644273067,0.00200063,84769.0,84767.0,0.23594]
[1744644273343,0.247734,84768.0,84764.0,0.011797]
[1744644273520,0.011796,84768.0,84765.0,0.235946]
[1744644273724,0.00200063,84769.0,84768.0,0.235938]
[1744644273925,0.00200063,84769.0,84766.0,0.247739]
[1744644274589,0.00200063,84769.0,84767.0,0.235938]
[1744644274906,0.00200063,84769.0,84766.0,0.247739]
[1744644274907,0.23593563,84769.0,84766.0,0.247739]
[1744644275104,0.011797,84767.0,84763.0,0.011797]
[1744644275317,0.00200063,84769.0,84763.0,0.011797]
[1744644275318,0.00200063,84769.0,84767.0,0.23594]
[1744644275570,0.247737,84767.0,84764.0,0.235948]
[1744644275854,0.247737,84767.0,84764.0,0.247745]
[1744644276354,0.00100063,84769.0,84768.0,0.235938]
[1744644276645,6.3e-07,84769.0,84766.0,0.011797]
[1744644276883,0.001,84767.0,84766.0,0.24774]
[1744644277574,0.001,84767.0,84765.0,0.011797]
[1744644277575,0.011797,84766.0,84763.0,0.235951]
[1744644277843,0.248739,84767.0,84764.0,0.235947]
[1744644278068,0.23593663,84769.0,84766.0,0.24774]
[1744644278292,0.23793663,84769.0,84766.0,0.24774]
[1744644278506,0.24973263,84769.0,84766.0,0.24774]
[1744644278872,0.24773263,84769.0,84766.0,0.24774]
[1744644279081,0.001,84767.0,84766.0,0.24774]
[1744644279506,0.235938,84768.0,84765.0,0.235946]
[1744644279805,0.235945,84766.0,84764.0,0.235949]
[1744644280010,0.011797,84766.0,84763.0,0.247748]
[1744644280208,0.247743,84766.0,84763.0,0.247748]
[1744644280465,0.247761,84760.0,84751.0,0.235984]
[1744644280778,0.247769,84758.0,84754.0,0.235976]
[1744644281025,0.011798,84759.0,84754.0,0.011798]
[1744644281266,0.247743,84765.0,84762.0,0.235954]
[1744644281505,0.23593763,84769.0,84761.0,0.011797]
[1744644281506,6.3e-07,84769.0,84768.0,0.235938]
[1744644281744,6.3e-07,84769.0,84763.0,0.235949]
[1744644281745,6.3e-07,84769.0,84764.0,0.235946]
[1744644281955,0.011797,84767.0,84763.0,0.247748]
[1744644282187,0.235939,84768.0,84763.0,0.247748]
[1744644282188,0.235939,84768.0,84765.0,0.247742]
[1744644282414,0.235939,84768.0,84764.0,0.011797]
[1744644282415,0.235943,84767.0,84763.0,0.011797]
[1744644282631,0.247734,84768.0,84765.0,0.235945]
[1744644282874,0.24773163,84769.0,84766.0,0.235942]
[1744644283116,0.23594,84767.0,84762.0,0.011797]
[1744644283358,0.247737,84767.0,84764.0,0.011797]
[1744644283593,0.00100063,84769.0,84767.0,0.23594]
[1744644283831,0.00100063,84769.0,84766.0,0.24774]
[1744644283832,0.235938,84768.0,84766.0,0.24774]
[1744644284077,0.235938,84768.0,84761.0,0.235955]
[1744644284078,0.011797,84766.0,84760.0,0.24775]
[1744644284360,0.011798,84760.0,84757.0,0.235968]
[1744644284587,0.011798,84755.0,84753.0,0.235979]
[1744644284818,0.247768,84757.0,84754.0,0.235977]
[1744644285023,0.247765,84758.0,84755.0,0.235973]
[1744644285368,0.235971,84756.0,84754.0,0.247774]
[1744644285560,0.011798,84757.0,84754.0,0.247774]
[1744644285561,0.247769,84757.0,84754.0,0.247774]
[1744644285895,0.011798,84758.0,84755.0,0.247769]
[1744644286099,0.247765,84758.0,84755.0,0.247769]
[1744644286503,0.247765,84758.0,84755.0,0.235974]
[1744644286679,0.011798,84757.0,84754.0,0.248774]
[1744644286875,0.247768,84757.0,84754.0,0.001]
[1744644287080,0.011798,84757.0,84754.0,0.001]
[1744644287240,0.235971,84756.0,84754.0,0.235975]
[1744644287446,0.235971,84756.0,84753.0,0.235979]
[1744644287447,0.011798,84754.0,84748.0,0.1636]
[1744644287777,0.011798,84755.0,84753.0,0.235979]
[1744644287990,0.247769,84756.0,84754.0,0.002]
[1744644288404,0.235974,84755.0,84754.0,0.001]
[1744644288772,0.235985,84751.0,84750.0,0.001]
[1744644289034,0.23599,84749.0,84748.0,0.1636]
[1744644289268,0.247789,84749.0,84746.0,0.011799]
[1744644289510,0.011799,84752.0,84749.0,0.23599]
[1744644289739,0.247781,84752.0,84749.0,0.247789]
[1744644289964,0.235988,84750.0,84747.0,0.247795]
[1744644290190,0.247787,84751.0,84748.0,0.235991]
[1744644290464,0.011799,84750.0,84747.0,0.247795]
[1744644290695,0.001,84751.0,84748.0,0.011799]
[1744644291155,0.011798,84757.0,84754.0,0.247772]
[1744644291625,0.235951,84764.0,84761.0,0.011797]
[1744644291863,0.235961,84760.0,84757.0,0.011798]
[1744644292159,0.01083268,84763.0,84762.0,0.235954]
[1744644292635,6.3e-07,84769.0,84767.0,0.23594]
[1744644292872,0.011798,84757.0,84753.0,0.235979]
[1744644293095,0.235954,84762.0,84758.0,0.235964]
[1744644293321,0.235941,84767.0,84764.0,0.235948]
[1744644293556,0.247738,84767.0,84764.0,0.247745]
[1744644293774,0.235943,84766.0,84763.0,0.011797]
[1744644293974,0.247741,84766.0,84763.0,0.247748]
[1744644294112,0.25857368,84766.0,84763.0,0.247748]
[1744644294522,0.235948,84765.0,84762.0,0.011797]
[1744644294759,0.011797,84765.0,84760.0,0.011798]
[1744644294968,0.247767,84757.0,84755.0,0.235974]
[1744644295192,0.011797,84765.0,84759.0,0.011798]
[1744644295344,0.011797,84764.0,84759.0,0.011798]
[1744644295682,0.24773663,84769.0,84766.0,0.011797]
[1744644295826,0.247734,84768.0,84765.0,0.235946]
[1744644296026,0.23595,84764.0,84761.0,0.247752]
[1744644296230,0.235946,84765.0,84762.0,0.235952]
[1744644296479,0.235947,84765.0,84762.0,0.011797]
[1744644296717,0.247741,84766.0,84762.0,0.011797]
[1744644296918,0.01083431,84764.0,84762.0,0.011797]
[1744644297096,0.01083431,84764.0,84762.0,0.247751]
[1744644297498,0.02263131,84764.0,84761.0,0.247753]
[1744644297682,0.235963,84759.0,84756.0,0.247764]
[1744644297882,0.011798,84760.0,84756.0,0.247764]
[1744644298082,0.235958,84761.0,84758.0,0.011798]
[1744644298524,0.011798,84757.0,84752.0,0.011799]
[1744644298719,0.247776,84754.0,84751.0,0.399584]
[1744644298882,0.235974,84755.0,84753.0,0.235979]
[1744644299080,0.011798,84759.0,84751.0,0.1636]
[1744644299081,0.0004221,84781.0,84759.0,0.011798]
[1744644299312,0.011797,84767.0,84762.0,0.235954]
[1744644299523,0.011797,84764.0,84761.0,0.247754]
[1744644299873,0.247746,84764.0,84760.0,0.247755]
[1744644300096,0.235953,84763.0,84760.0,0.247755]
[1744644300211,0.24775,84763.0,84760.0,0.011798]
[1744644300411,0.011798,84754.0,84751.0,0.175399]
[1744644300648,0.011798,84754.0,84751.0,0.1636]
[1744644300854,0.235982,84752.0,84751.0,0.1636]
[1744644301066,0.011798,84755.0,84753.0,0.235979]
[1744644301369,0.235974,84755.0,84753.0,0.235978]
[1744644301530,0.24777,84756.0,84753.0,0.235978]
[1744644301864,0.011798,84754.0,84751.0,0.1636]
[1744644302099,0.24779,84749.0,84740.0,0.236015]
[1744644302320,0.235996,84747.0,84739.0,0.01200334]
[1744644302491,0.46427839,84747.0,84732.0,0.0008446]
[1744644302701,0.81379638,84747.0,84732.0,0.0008446]
[1744644302901,0.29637285,84734.0,84732.0,0.0008446]
[1744644303149,0.42804431,84734.0,84732.0,0.0008446]
[1744644303844,0.44970499,84734.0,84732.0,0.0008446]
[1744644304174,0.35454085,84733.0,84732.0,2e-07]
[1744644304373,0.47538239,84733.0,84732.0,2e-07]
[1744644304614,0.59061185,84720.0,84719.0,2e-07]
[1744644304821,1.12795339,84720.0,84719.0,2e-07]
[1744644305026,1.14961407,84720.0,84719.0,2e-07]
[1744644305629,1.16044399,84720.0,84719.0,2e-07]
[1744644306144,1.16044399,84720.0,84719.0,0.0001385]
[1744644306345,1.14772525,84720.0,84719.0,0.0001385]
[1744644306497,1.15072525,84720.0,84719.0,0.0001385]
[1744644306700,1.15372525,84720.0,84719.0,0.0001385]
[1744644307157,0.79024246,84720.0,84719.0,0.0001385]
[1744644307604,0.80478331,84720.0,84719.0,0.0001385]
[1744644308163,0.79395339,84720.0,84719.0,0.0001385]
[1744644308771,1.29968187,84720.0,84719.0,0.0001385]
[1744644308976,1.17895339,84720.0,84719.0,0.0001385]
[1744644309836,1.17595339,84720.0,84719.0,0.0001385]
[1744644310132,1.18371893,84720.0,84719.0,0.0001385]
[1744644311030,1.18871893,84720.0,84719.0,0.0001385]
[1744644311174,1.19371893,84720.0,84719.0,0.0001385]
[1744644313182,1.30368187,84720.0,84719.0,0.0001385]
[1744644313608,1.18295339,84720.0,84719.0,0.0001385]
[1744644314588,0.79795339,84720.0,84719.0,0.0001385]
[1744644314779,0.01,84720.0,84719.0,0.0001385]
[1744644314926,0.01,84720.0,84719.0,0.3401385]
[1744644315333,1e-06,84720.0,84719.0,0.46098004]
[1744644315728,0.4165,84741.0,84740.0,0.23581404]
[1744644315931,0.05470656,84751.0,84747.0,0.011799]
[1744644316130,0.05470656,84751.0,84750.0,0.235988]
[1744644316634,0.05470656,84751.0,84749.0,0.23599]
[1744644316915,0.05470656,84751.0,84750.0,0.34]
[1744644317063,0.011797,84761.0,84757.0,0.011798]
[1744644317265,0.247759,84760.0,84757.0,0.247765]
[1744644317465,0.247759,84760.0,84757.0,0.011798]
[1744644317711,0.011798,84758.0,84753.0,0.011798]
[1744644317915,0.011799,84749.0,84745.0,0.1727174]
[1744644318071,0.011798,84754.0,84749.0,0.011799]
[1744644318275,0.247745,84765.0,84759.0,0.011798]
[1744644318485,0.247755,84761.0,84756.0,0.247766]
[1744644318810,0.235953,84763.0,84757.0,0.247766]
[1744644319013,0.011797,84761.0,84754.0,0.247774]
[1744644319209,0.235985,84751.0,84750.0,0.006]
[1744644319410,0.011798,84756.0,84750.0,0.241987]
[1744644319411,0.235978,84754.0,84750.0,0.241987]
[1744644319578,0.235981,84753.0,84750.0,0.017799]
[1744644320094,0.235983,84752.0,84750.0,0.006]
[1744644320410,0.235985,84752.0,84748.0,0.247791]
[1744644320613,0.011799,84749.0,84745.0,0.1727174]
[1744644320774,0.23599,84749.0,84746.0,0.011799]
[1744644320975,0.23599,84750.0,84745.0,0.1727174]
[1744644321244,0.235998,84747.0,84745.0,0.16352]
[1744644321617,0.235989,84750.0,84746.0,0.011799]
[1744644321941,0.01454085,84747.0,84746.0,0.003]
[1744644322189,0.25053985,84746.0,84745.0,0.001]
[1744644322331,0.236042,84731.0,84727.0,0.011802]
[1744644322532,0.236042,84731.0,84725.0,0.247858]
[1744644322533,0.236056,84726.0,84723.0,0.06806628]
[1744644322757,0.236056,84726.0,84723.0,0.64412828]
[1744644322952,0.23607,84721.0,84717.0,0.236078]
[1744644323152,0.236067,84722.0,84713.0,0.0606478]
[1744644323367,0.236071,84721.0,84713.0,0.0008438]
[1744644323733,0.236071,84721.0,84719.0,0.0001385]
[1744644323930,0.13538239,84720.0,84719.0,0.0001385]
[1744644324593,0.13538239,84720.0,84719.0,0.0031385]
[1744644324938,0.13538239,84720.0,84719.0,0.0001385]
[1744644325134,0.13538239,84720.0,84719.0,0.0031385]
[1744644325338,0.12084154,84720.0,84719.0,0.0031385]
[1744644325541,0.23607,84721.0,84719.0,0.0031385]
[1744644325745,0.35691154,84721.0,84719.0,0.0031385]
[1744644325952,0.12084154,84720.0,84719.0,0.0031385]
[1744644326379,0.23607,84721.0,84719.0,0.0031385]
[1744644327015,0.00029777,84724.0,84723.0,0.236063]
[1744644327219,0.23635977,84724.0,84721.0,0.011803]
[1744644327421,0.003,84720.0,84719.0,0.0119415]
[1744644327622,0.236065,84723.0,84719.0,0.0119415]
[1744644327623,0.236069,84721.0,84719.0,0.0001385]
[1744644327963,0.001,84720.0,84719.0,0.0001385]
[1744644328575,0.12284154,84720.0,84719.0,0.0001385]
[1744644328769,0.12184154,84720.0,84719.0,0.0001385]
[1744644328967,0.13638239,84720.0,84719.0,0.0001385]
[1744644329916,0.13738239,84720.0,84719.0,0.0001385]
[1744644331341,0.14909251,84720.0,84719.0,0.0001385]
[1744644331546,0.01371012,84720.0,84719.0,0.0001385]
[1744644332774,0.24978112,84720.0,84719.0,0.0001385]
[1744644332972,0.37062266,84720.0,84719.0,0.0001385]
[1744644333193,0.38516351,84720.0,84719.0,0.0001385]
[1744644333616,1.14166351,84720.0,84719.0,0.0001385]
[1744644333830,1.14959913,84720.0,84719.0,0.0001385]
[1744644333963,1.14959913,84720.0,84719.0,0.0021385]
[1744644334164,1.14859913,84720.0,84719.0,0.0001385]
[1744644334749,1.15159913,84720.0,84719.0,0.0001385]
[1744644335107,1.27550657,84720.0,84719.0,0.0001385]
[1744644335311,1.27550657,84720.0,84719.0,5e-07]
[1744644335516,0.59063185,84713.0,84712.0,1e-07]
[1744644335692,0.59063185,84713.0,84699.0,0.0008446]
[1744644335693,0.01454085,84701.0,84699.0,0.0008446]
[1744644335893,0.13515272,84700.0,84699.0,0.0008446]
[1744644336105,0.14668454,84700.0,84699.0,0.0008446]
[1744644336790,0.56318444,84700.0,84699.0,0.0008446]
[1744644336998,0.57397897,84700.0,84699.0,0.0008446]
[1744644337266,0.55943812,84700.0,84699.0,0.0008446]
[1744644337727,0.59754782,84700.0,84699.0,0.0008446]
[1744644337918,0.59554782,84700.0,84699.0,0.0008446]
[1744644338320,0.57697897,84700.0,84699.0,0.0008446]
[1744644339211,0.25070385,84687.0,84685.0,0.0008446]
[1744644339410,0.59070985,84685.0,84683.0,3.9e-07]
[1744644339612,0.59071785,84682.0,84681.0,3.9e-07]
[1744644339825,0.59072685,84679.0,84678.0,9.9e-07]
[1744644340036,0.73311607,84679.0,84678.0,9.9e-07]
[1744644340236,0.74449094,84679.0,84678.0,4.711e-05]
[1744644340381,0.75528547,84679.0,84678.0,4.711e-05]
[1744644340593,0.86969107,84679.0,84678.0,4.711e-05]
[1744644341197,0.76431686,84679.0,84678.0,4.711e-05]
[1744644341546,0.76631686,84679.0,84678.0,4.711e-05]
[1744644341755,0.76431686,84679.0,84678.0,4.711e-05]
[1744644342159,0.76931686,84679.0,84678.0,4.711e-05]
[1744644342569,1.18581676,84679.0,84678.0,1.1e-07]
[1744644342770,0.236222,84666.0,84665.0,0.0004224]
[1744644342941,0.88644362,84666.0,84665.0,0.00054227]
[1744644343141,0.89723815,84666.0,84665.0,0.00054227]
[1744644343735,0.73367815,84666.0,84665.0,0.00054227]
[1744644344084,0.73544832,84666.0,84665.0,0.00054227]
[1744644344445,0.73844832,84666.0,84665.0,0.00054227]
[1744644344624,0.72465379,84666.0,84665.0,0.00054227]
[1744644344992,0.72765379,84666.0,84665.0,0.00054227]
[1744644345174,0.72565379,84666.0,84665.0,0.00054227]
[1744644346520,0.72865379,84666.0,84665.0,0.00054227]
[1744644347136,0.72565379,84666.0,84665.0,0.00054227]
[1744644347355,0.72765379,84666.0,84665.0,0.00054227]
[1744644348165,1.15489368,84666.0,84665.0,0.00054227]
[1744644348857,1.17638053,84666.0,84665.0,0.00054227]
[1744644350503,0.25080185,84652.0,84651.0,6e-07]
[1744644350751,0.78814318,84652.0,84651.0,0.00013903]
[1744644351038,0.7991712,84652.0,84651.0,0.00013903]
[1744644351817,0.80993928,84652.0,84651.0,0.00013903]
[1744644351976,0.80993928,84652.0,84651.0,0.00113903]
[1744644352405,0.43829589,84652.0,84651.0,0.00113903]
[1744644352630,0.67455689,84652.0,84651.0,0.00113903]
[1744644353499,0.67455689,84652.0,84651.0,0.23740303]
[1744644353500,0.43829589,84652.0,84651.0,0.23740303]
[1744644353923,0.43829589,84652.0,84651.0,0.28560303]
[1744644353924,0.42752781,84652.0,84651.0,0.28560303]
[1744644354142,0.01102802,84652.0,84651.0,0.33190303]
[1744644354577,0.011811,84664.0,84656.0,0.011812]
[1744644354796,0.011811,84661.0,84657.0,0.248056]
[1744644354951,0.25618229,84660.0,84657.0,0.248056]
[1744644355156,0.01994329,84660.0,84658.0,0.236244]
[1744644355562,0.01994329,84660.0,84656.0,0.011812]
[1744644355767,0.01994329,84660.0,84658.0,0.236242]
[1744644355963,0.236246,84658.0,84654.0,0.248062]
[1744644356187,0.00914448,84657.0,84656.0,0.011812]
[1744644356401,0.248042,84663.0,84659.0,0.011812]
[1744644356598,0.011811,84665.0,84660.0,0.011811]
[1744644356925,0.236233,84662.0,84660.0,0.011811]
[1744644357136,0.236239,84660.0,84657.0,0.239247]
[1744644357423,0.011811,84663.0,84659.0,0.011812]
[1744644357640,0.236237,84661.0,84660.0,0.002]
[1744644358020,0.236237,84661.0,84658.0,0.248055]
[1744644358222,0.236206,84672.0,84666.0,0.011811]
[1744644358416,0.01181,84671.0,84667.0,0.01181]
[1744644358621,0.02159897,84669.0,84668.0,0.236215]
[1744644359504,0.03239974,84669.0,84668.0,0.236215]
[1744644359969,0.01080077,84669.0,84668.0,0.236215]
[1744644360875,0.01180077,84669.0,84667.0,0.236219]
[1744644361075,0.236221,84667.0,84664.0,0.248036]
[1744644361539,0.011812,84658.0,84654.0,0.011812]
[1744644361749,0.001,84669.0,84654.0,0.011812]
[1744644361866,0.001,84669.0,84663.0,0.011811]
[1744644362069,0.236211,84670.0,84667.0,0.236219]
[1744644362273,0.0092315,84668.0,84667.0,0.236219]
[1744644362475,0.011809,84675.0,84667.0,0.248029]
[1744644362476,0.01181,84672.0,84667.0,0.248029]
[1744644362677,0.01181,84670.0,84667.0,0.248029]
[1744644362871,0.04167287,84671.0,84670.0,0.236211]
[1744644363076,2e-08,84671.0,84670.0,0.7985147]
[1744644363291,0.0002,84700.0,84699.0,0.33063]
[1744644364330,0.0002,84700.0,84699.0,0.0945]
[1744644364615,0.0002,84700.0,84699.0,0.0968611]
[1744644364820,0.00033816,84700.0,84699.0,0.0968611]
[1744644365201,0.00033816,84700.0,84699.0,0.56070264]
[1744644365450,0.00033816,84700.0,84699.0,0.55534154]
[1744644365827,0.00033816,84700.0,84699.0,0.55834154]
[1744644366303,0.00033816,84700.0,84699.0,0.55534154]
[1744644366504,0.00033816,84700.0,84699.0,0.55734154]
[1744644367209,7.6e-07,84703.0,84702.0,0.576121]
[1744644367413,7.6e-07,84703.0,84702.0,0.69696254]
[1744644368027,2.6,84721.0,84720.0,0.284071]
[1744644368234,2.60820838,84721.0,84720.0,0.284071]
[1744644369510,2.60820838,84721.0,84720.0,0.288071]
[1744644370038,2.60820838,84721.0,84720.0,0.45881254]
[1744644370722,2.60820838,84721.0,84720.0,0.79881254]
[1744644370945,1.04942638,84721.0,84720.0,0.96217254]
[1744644371149,0.10119338,84721.0,84720.0,0.96217254]
[1744644371357,0.10119338,84721.0,84720.0,0.95817254]
[1744644371477,0.092985,84721.0,84720.0,0.95817254]
[1744644371673,0.092985,84721.0,84720.0,0.96417254]
[1744644371876,0.08809969,84721.0,84720.0,0.95817254]
[1744644372080,0.0008444,84734.0,84733.0,0.576035]
[1744644372297,0.00130589,84734.0,84733.0,0.69687654]
[1744644372925,0.00130589,84734.0,84733.0,0.34]
[1744644373323,0.00130589,84734.0,84733.0,0.348]
[1744644373589,0.00130589,84734.0,84733.0,0.352]
[1744644374149,0.00130589,84734.0,84733.0,0.348]
[1744644374490,0.00130589,84734.0,84733.0,0.35]
[1744644374663,0.00130589,84734.0,84733.0,0.342]
[1744644374845,0.00130589,84734.0,84733.0,0.009]
[1744644375192,0.00966521,84734.0,84733.0,0.002]
[1744644375596,0.00966521,84734.0,84733.0,0.005]
[1744644375806,0.00130589,84734.0,84733.0,0.003]
[1744644376099,0.00977468,84734.0,84733.0,0.005]
[1744644376320,0.00130589,84734.0,84733.0,0.005]
[1744644376455,0.00977468,84734.0,84733.0,0.005]
[1744644376659,0.00130589,84734.0,84733.0,0.005]
[1744644377678,0.00977468,84734.0,84733.0,0.005]
[1744644377875,0.00130589,84734.0,84733.0,0.005]
[1744644378118,0.00977468,84734.0,84733.0,0.005]
[1744644378273,0.00130589,84734.0,84733.0,0.005]
[1744644378883,0.00976946,84734.0,84733.0,0.005]
[1744644381160,0.05646946,84734.0,84733.0,0.005]
[1744644381558,0.19185185,84734.0,84733.0,0.005]
[1744644381762,0.65735164,84734.0,84733.0,0.002]
[1744644381996,0.0486,84712.0,84685.0,0.011808]
[1744644382208,0.0486,84712.0,84682.0,0.4187]
[1744644382209,0.236147,84693.0,84684.0,0.16308]
[1744644382329,0.011807,84690.0,84684.0,0.16308]
[1744644382539,0.011807,84692.0,84685.0,0.011808]
[1744644382762,0.011806,84701.0,84694.0,0.011807]
[1744644382990,0.011806,84699.0,84692.0,0.247954]
[1744644383162,0.02008278,84698.0,84690.0,0.247959]
[1744644383386,0.02008278,84698.0,84689.0,0.011807]
[1744644383387,0.00827678,84698.0,84689.0,0.011807]
[1744644383590,0.00827678,84698.0,84691.0,0.011807]
[1744644383787,0.00827678,84698.0,84693.0,0.011807]
[1744644383987,0.011806,84702.0,84694.0,0.011807]
[1744644384339,0.00829013,84701.0,84698.0,0.011806]
[1744644384486,0.00829013,84701.0,84692.0,0.011807]
[1744644384686,0.011806,84699.0,84691.0,0.247956]
[1744644385012,0.00827678,84698.0,84696.0,0.011806]
[1744644385241,7.8e-07,84698.0,84697.0,0.576135]
[1744644385369,0.46619979,84740.0,84733.0,0.236035]
[1744644385798,0.46619979,84740.0,84731.0,0.351802]
[1744644385993,0.249819,84739.0,84731.0,0.34]
[1744644386191,0.011802,84731.0,84722.0,0.576065]
[1744644386436,0.236067,84722.0,84711.0,0.2479]
[1744644386653,0.011803,84724.0,84713.0,0.236089]
[1744644386821,0.011803,84721.0,84714.0,0.34]
[1744644387225,0.011803,84724.0,84717.0,0.011804]
[1744644387436,0.011803,84724.0,84716.0,0.236082]
[1744644387437,0.011803,84724.0,84716.0,0.011804]
[1744644387813,0.011803,84719.0,84714.0,0.34]
[1744644388473,0.236082,84716.0,84714.0,0.34]
[1744644388678,0.236088,84714.0,84713.0,0.16412]
[1744644389087,0.24793,84702.0,84693.0,0.011807]
[1744644389290,0.24793,84702.0,84691.0,0.011807]
[1744644389291,0.011806,84702.0,84692.0,0.011807]
[1744644389438,0.011806,84697.0,84691.0,0.16312]
[1744644389631,0.011806,84698.0,84691.0,0.16312]
[1744644390270,0.247939,84698.0,84691.0,0.174927]
[1744644390492,0.011805,84706.0,84699.0,0.011806]
[1744644390696,0.011805,84703.0,84692.0,0.247955]
[1744644390902,0.011805,84705.0,84696.0,0.011806]
[1744644391076,0.011805,84704.0,84692.0,0.011807]
[1744644391440,0.011806,84698.0,84691.0,0.41121516]
[1744644391661,0.011806,84696.0,84691.0,0.16425816]
[1744644391809,0.011806,84697.0,84693.0,0.002]
[1744644392012,0.011806,84699.0,84693.0,0.011807]
[1744644392229,0.011803,84719.0,84707.0,0.011805]
[1744644392433,0.058704,84716.0,84708.0,0.011805]
[1744644392657,0.02158377,84715.0,84714.0,0.236088]
[1744644393013,0.02158377,84715.0,84714.0,0.24604611]
[1744644393324,0.01079712,84725.0,84724.0,0.23606]
[1744644393730,0.01079712,84733.0,84728.0,0.236048]
[1744644393937,0.01079712,84733.0,84730.0,0.011802]
[1744644394145,0.02160289,84732.0,84730.0,0.247843]
[1744644394359,0.02160289,84732.0,84731.0,0.236041]
[1744644394567,0.01079712,84733.0,84732.0,0.236038]
[1744644394793,0.01125833,84733.0,84732.0,0.236038]
[1744644395460,0.00046121,84733.0,84732.0,0.236038]
[1744644395796,0.00046121,84733.0,84731.0,0.236041]
[1744644396214,0.00046121,84733.0,84732.0,0.238038]
[1744644398052,0.00046121,84733.0,84730.0,0.011802]
[1744644398223,0.011802,84727.0,84717.0,0.011804]
[1744644398432,0.00046121,84733.0,84730.0,0.011802]
[1744644398628,0.00046121,84733.0,84727.0,0.011802]
[1744644398832,0.01226221,84733.0,84732.0,0.002]
[1744644399038,0.24829721,84733.0,84732.0,0.002]
[1744644399177,0.011802,84729.0,84722.0,0.011803]
[1744644399394,0.247847,84730.0,84722.0,0.011803]
[1744644399587,0.01226221,84733.0,84720.0,0.351803]
[1744644399789,0.00046121,84733.0,84727.0,0.011802]
[1744644399987,0.00046121,84733.0,84732.0,0.237038]
[1744644400197,0.00146121,84733.0,84732.0,0.001]
[1744644401216,0.00046121,84733.0,84732.0,0.001]
[1744644401851,0.00046121,84733.0,84730.0,0.247844]
[1744644402068,0.00046121,84733.0,84727.0,0.011802]
[1744644402331,0.00046121,84733.0,84728.0,0.011802]
[1744644402447,0.00046121,84733.0,84732.0,0.236038]
[1744644402650,0.00046121,84733.0,84732.0,0.002]
[1744644403100,0.01226221,84733.0,84728.0,0.011802]
[1744644403348,0.00046121,84733.0,84730.0,0.011802]
[1744644403500,0.00046121,84733.0,84727.0,0.251853]
[1744644403501,0.01226221,84733.0,84727.0,0.001]
[1744644403711,0.236049,84728.0,84727.0,0.001]
[1744644404451,0.236049,84728.0,84715.0,0.236084]
[1744644404452,0.011804,84713.0,84704.0,0.011805]
[1744644404657,0.011804,84713.0,84701.0,0.174886]
[1744644404658,0.011805,84704.0,84701.0,0.16308]
[1744644404847,0.236121,84702.0,84701.0,0.16308]
[1744644405049,0.011805,84704.0,84701.0,0.16308]
[1744644405679,0.236121,84702.0,84701.0,0.16308]
[1744644406198,0.236121,84703.0,84688.0,0.011808]
[1744644406199,0.247939,84698.0,84692.0,0.011807]
[1744644406576,0.0483,84700.0,84695.0,0.23614]
[1744644406776,0.0483,84700.0,84696.0,0.247941]
[1744644406970,0.0483,84700.0,84695.0,0.247947]
[1744644407126,0.001,84704.0,84700.0,0.011806]
[1744644407538,0.011805,84706.0,84700.0,0.011806]
[1744644407731,0.0468,84721.0,84714.0,0.011804]
[1744644407934,0.011802,84725.0,84718.0,0.236076]
[1744644408281,0.247872,84721.0,84714.0,0.247889]
[1744644408477,0.011803,84724.0,84715.0,0.011804]
[1744644408675,0.011803,84719.0,84714.0,0.011804]
[1744644408874,0.011803,84719.0,84713.0,0.247889]
[1744644409035,0.011803,84719.0,84714.0,0.011804]
[1744644409383,0.00046121,84719.0,84717.0,0.247881]
[1744644409564,0.00046121,84719.0,84716.0,0.247886]
[1744644410164,0.00046121,84719.0,84717.0,0.23608]
[1744644410373,0.00046121,84719.0,84718.0,0.236077]
[1744644410754,0.011804,84716.0,84710.0,0.011804]
[1744644410966,0.00046121,84719.0,84713.0,0.236089]
[1744644411166,0.00046121,84719.0,84716.0,0.002]
[1744644411358,0.01226421,84719.0,84714.0,0.001]
[1744644411677,0.011804,84717.0,84709.0,0.011805]
[1744644412022,0.011804,84717.0,84710.0,0.002]
[1744644412183,0.247885,84717.0,84710.0,0.249902]
[1744644412534,0.247885,84717.0,84703.0,0.34]
[1744644412535,0.011805,84709.0,84703.0,0.34]
[1744644412722,0.011804,84710.0,84704.0,0.247921]
[1744644412932,0.247903,84710.0,84709.0,0.001]
[1744644413316,0.247903,84710.0,84709.0,0.00015]
[1744644413731,0.41524454,84710.0,84709.0,0.00015]
[1744644414359,0.43682649,84710.0,84709.0,0.00015]
[1744644414560,0.011806,84697.0,84692.0,0.011807]
[1744644414892,0.011806,84697.0,84690.0,0.011807]
[1744644415094,0.011807,84695.0,84691.0,0.011807]
[1744644415317,0.236161,84688.0,84686.0,0.0004219]
[1744644415499,0.011807,84689.0,84686.0,0.0004219]
[1744644415668,0.247968,84689.0,84686.0,0.0004219]
[1744644416054,0.011807,84689.0,84686.0,0.0004219]
[1744644416252,0.247963,84690.0,84686.0,0.0004219]
[1744644416451,0.243963,84690.0,84686.0,0.0004219]
[1744644416757,0.247966,84689.0,84686.0,0.00056006]
[1744644416998,0.240966,84689.0,84686.0,0.00056006]
[1744644417357,0.236163,84688.0,84686.0,0.00056006]
[1744644417571,0.236163,84688.0,84686.0,0.00956006]
[1744644417779,0.236163,84688.0,84686.0,0.00456006]
[1744644418156,0.0483,84687.0,84686.0,0.00456006]
[1744644418351,0.0483,84687.0,84686.0,0.00956006]